Cogmind - Beta 17 @@@ ROGUE MODE // 2026.07.03 @ 12:35:51 Player: beans Result: Destroyed by P-80 Master with Gamma Rifle Performance ------------- Evolutions (7) 3500 Regions Visited (17) 3400 Robots Destroyed (95) 475 Value Destroyed (4030) 4030 Prototype IDs (55) 1100 Alien Tech Used (0) 0 Bonus (3316) 3316 TOTAL SCORE: 15821 Bonus ------- High Alert Combat Kills 96 Follower Combat Kills 2327 Entered DSFs 500 Registered with UFD 300 Met Optimus in HQ 500 Met Zhirov 300 Friendly Fire -707 Cogmind --------- Core Integrity 0/1300 Matter 300/300 Energy 99/100 System Corruption 35% Temperature Cool (5) Movement Core (50) Location -3/Research Parts ------- > --- POWER (2) -------- (None) > --- PROPULSION (4) --- (None) > --- UTILITY (9) ------ 0b10 Decoder Chip [Generic] (fused) Advanced Target Analyzer Advanced Hacking Suite Self-contained Transmogrifier > --- WEAPON (6) ------- (None) > --- INVENTORY (5) ---- Micro Antimatter Reactor Experimental Matter Compressor (500) Experimental Matter Compressor (194) Graviton Cannon Peak State ------------ > --- POWER ------------ Hybrid Deuterium Engine Hybrid Antimatter Reactor > --- PROPULSION ------- Improved Titanium Leg Biometal Leg Centrium Leg > --- UTILITY ---------- Advanced Heat Sink Advanced Cooling System Experimental Matter Compressor Improved Transmission Jammer Active Sensor Spoofer Improved Powered Armor Advanced Hacking Suite Advanced Hacking Suite Self-contained Transmogrifier > --- WEAPON ----------- Quantum Rifle Enhanced Quantum Rifle KE Penetrator KE Penetrator Railgun Railgun > --- INVENTORY -------- Quantum Rifle KE Penetrator Graviton Cannon [Rating: 137] Favorites ----------- Power Subdweller Power Source Engine Subdweller Power Source Power Core Light Fission Core Reactor Light Antimatter Reactor Propulsion Cargo Legs Treads Light Treads Leg Cargo Legs Hover Unit Improved Antigrav System Utility Advanced Heat Sink Device Advanced Heat Sink Storage Experimental Matter Compressor Processor Makeshift Salvage Targeting Computer Hackware Advanced Hacking Suite Protection Light Armor Plating Weapon KE Penetrator Energy Gun Small Laser Energy Cannon Neutron Cannon Ballistic Gun KE Penetrator Ballistic Cannon Graviton Cannon Launcher Ragnarok Missile Launcher Special Weapon Flamer Build | -11 -10 -10 -10 -7 -7 -5 -5 -5 -5 -5 -5 -4 -4 -4 -4 -4 -3 ------- Run | Yrd Mat Min Sub Rec Scr Fac Was Fac Upp Upp Zhi Pro Fac Was Fac DSF Res Slots Evolved 14 | . . . . . . 10 . . . . . . 2 . . . 2 Power 1 | . . . . . . 1 . . . . . . . . . . . Propulsion 2 | . . . . . . 2 . . . . . . . . . . . Utility 7 | . . . . . . 4 . . . . . . 2 . . . 1 Weapon 4 | . . . . . . 3 . . . . . . . . . . 1 Parts Attached 104 | 5 2 4 11 3 1 12 5 2 1 . 5 2 3 8 . 10 30 Power 14 | 1 . 1 1 1 1 3 . . 1 . . . 1 1 . . 3 Engine 5 | 1 . . 1 1 . 2 . . . . . . . . . . . Core 4 | . . 1 . . 1 . . . 1 . . . 1 . . . . Reactor 5 | . . . . . . 1 . . . . . . . 1 . . 3 Propulsion 19 | 2 . . 1 . . 2 2 . . . 2 1 . . . . 9 Treads 2 | 2 . . . . . . . . . . . . . . . . . Leg 12 | . . . 1 . . 2 2 . . . 2 1 . . . . 4 Wheel . | . . . . . . . . . . . . . . . . . . Hover 5 | . . . . . . . . . . . . . . . . . 5 Flight . | . . . . . . . . . . . . . . . . . . Utility 27 | . 2 1 1 2 . 5 1 . . . 1 1 1 1 . 5 6 Device 17 | . . 1 1 2 . 4 . . . . . 1 1 1 . 3 3 Storage 1 | . . . . . . . . . . . . . . . . . 1 Processor 3 | . . . . . . 1 1 . . . . . . . . . 1 Hackware 3 | . . . . . . . . . . . . . . . . 2 1 Protection 3 | . 2 . . . . . . . . . 1 . . . . . . Artifact . | . . . . . . . . . . . . . . . . . . Weapon 44 | 2 . 2 8 . . 2 2 2 . . 2 . 1 6 . 5 12 Energy Gun 12 | 2 . . 1 . . 1 . . . . . . . . . 2 6 Energy Cannon 3 | . . . . . . . . . . . 2 . . 1 . . . Ballistic Gun 23 | . . 2 3 . . 1 1 2 . . . . 1 4 . 3 6 Ballistic Cannon 1 | . . . . . . . . . . . . . . 1 . . . Launcher 2 | . . . 1 . . . 1 . . . . . . . . . . Special Weapon 3 | . . . 3 . . . . . . . . . . . . . . Impact Weapon . | . . . . . . . . . . . . . . . . . . Slashing Weapon . | . . . . . . . . . . . . . . . . . . Piercing Weapon . | . . . . . . . . . . . . . . . . . . Special Melee Weapon . | . . . . . . . . . . . . . . . . . . Unidentified Prototypes 6 | . . 1 . . . . 2 . . . . . . 2 . . 1 Parts Lost 68 | . . 1 2 . . 4 1 . . 1 11 4 5 . . . 39 Power 10 | . . . 1 . . 2 . . . 1 1 . 1 . . . 4 Propulsion 14 | . . . . . . . . . . . 2 . 1 . . . 11 Utility 17 | . . 1 . . . 1 . . . . 3 2 1 . . . 9 Weapon 27 | . . . 1 . . 1 1 . . . 5 2 2 . . . 15 Highest Loss Streak 12 | . . 1 2 . . 3 1 . . 1 11 2 4 . . . 12 To Critical Strikes . | . . . . . . . . . . . . . . . . . . Average Backups 4 | . 4 4 4 4 4 4 3 4 4 4 4 3 3 3 4 4 4 Power . | . . . . . . . . . . . . . . . . . . Propulsion . | . . . . . . . . . . . . . . . 1 . . Utility 1 | . . . . . . 2 2 2 2 2 2 2 3 1 1 . 1 Weapon 2 | . 4 4 3 2 2 . . 1 1 1 1 1 . 1 2 2 2 Tool/Special . | . . . . . . . . . . . . . . . . . . Unused Backups 12 | . . 1 1 1 1 1 . . . . . . . 2 . 2 3 Power 1 | . . . . . . . . . . . . . . . . . 1 Propulsion 1 | . . . . . . . . . . . . . . . . 1 . Utility 3 | . . . . . . . . . . . . . . 1 . . 2 Weapon 6 | . . 1 1 1 1 1 . . . . . . . . . 1 . Tool/Special 1 | . . . . . . . . . . . . . . 1 . . . Average Slot Usage (%) 63 | . 78 94 63 54 75 50 76 83 88 82 38 36 26 40 57 61 65 Engine 3 | . 14 9 8 6 . 1 3 5 3 . . . . 3 5 5 1 Core 2 | . . 4 3 . 9 1 . . 1 . . . 1 . . . . Reactor 1 | . . . . . . . 5 5 5 5 . . . 3 5 5 4 Treads 3 | . 28 28 4 . . . . . . . . . . . . . . Leg 9 | . . . 9 11 11 5 17 17 17 17 9 12 10 8 10 10 9 Device 15 | . . 5 15 14 33 19 19 17 17 17 3 12 9 10 10 11 16 Processor 2 | . . . . . . 3 8 11 11 11 11 5 . . . . 1 Protection 1 | . 7 17 . . . . . . . . 1 . . . . 3 1 Energy Gun 3 | . 28 18 2 . . 3 . . . . . . . 2 . 5 4 Ballistic Gun 9 | . . 9 16 . . 9 16 24 29 28 5 . 1 6 15 14 7 Special Weapon 5 | . . . 2 22 22 2 . . . . . . . . . . . Peak Build Rating 137 | 5 7 14 33 34 40 80 103 110 113 113 107 70 56 66 65 110 137 Average Rating 52 | 3 5 10 27 28 39 58 95 105 111 107 49 54 51 50 65 80 98 On Entrance 55 | . 5 7 8 26 34 40 80 98 110 113 107 51 54 26 65 65 110 Avg Prop Armor Cover (%) 23 | . . . . . . . . . . . . 21 25 25 . . 27 Naked Turns . | . . . . . . . . . . . . . . . . . . Heaviest Build 68 | 7 11 24 27 31 38 40 50 46 49 52 44 26 14 46 40 67 68 Greatest Support 113 | 40 40 40 55 55 55 95 113 113 113 113 113 75 80 50 50 50 106 Greatest Overweight (x) 10 | . . . . . . . . . . . . 4 . 1 . 1 10 Average Overweight (x) . | . . . . . . . . . . . . . . . . . . Largest Inventory Capacity 5 | 5 5 5 5 5 5 5 5 5 5 5 5 5 5 5 5 5 5 Average Capacity 5 | 5 5 5 5 5 5 5 5 5 5 5 5 5 5 5 5 5 5 Most Carried 5 | 2 5 5 5 5 5 5 5 5 5 5 5 5 5 5 5 5 5 Average Carried 4 | . 4 4 4 4 4 4 4 5 5 5 5 4 4 4 5 4 4 Final Capacity 5 | 5 5 5 5 5 5 5 5 5 5 5 5 5 5 5 5 5 5 Final Carried 5 | . 5 5 5 3 5 5 5 5 5 5 5 3 4 5 5 5 4 Scrap Suit Usage (%) 1 | . . . . . . 32 . . . . . . . . . . . Parts Cannibalized 1 | . . . . . . 1 . . . . . . . . . . . Transmogrified Parts 37 | . . . . . . . . . . . . 11 . 6 . 6 14 Integrity Recovered 1373 | . . . . . . . . . . . . 859 . 10 . 78 426 Class Distribution -------------------- 66% | Mutant 20% | Scavenger-Gunner 3% | Hacker-Executioner 3% | Scavenger-Mutant Dominant Class ---------------- Mutant | -10/Materials Mutant | -10/Mines Mutant | -10/Subcaves Mutant | -7/Recycling Mutant | -7/Scraptown Scavenger-Gunner | -5/Factory Scavenger-Gunner | -5/Waste Scavenger-Gunner | -5/Factory Scavenger-Gunner | -5/Upper Caves Scavenger-Gunner | -5/Upper Caves Mutant | -5/Zhirov Mutant | -4/Proximity Caves Mutant | -4/Factory Mutant | -4/Waste Mutant | -4/Factory Gunner | -4/DSF Hacker-Executioner | -3/Research Resources | -11 -10 -10 -10 -7 -7 -5 -5 -5 -5 -5 -5 -4 -4 -4 -4 -4 -3 ----------- Run | Yrd Mat Min Sub Rec Scr Fac Was Fac Upp Upp Zhi Pro Fac Was Fac DSF Res Matter Collected 6125 | 151 109 106 369 720 146 634 399 182 157 192 239 337 64 234 . 205 1881 Remotely 1028 | . . . . 77 146 304 . . . . . . . . . . 501 Salvage Created 5326 | . 63 180 250 254 . 692 452 264 223 241 446 392 58 . . 298 1513 Parts 218 | . 1 6 14 5 . 29 5 20 7 16 9 15 7 . . 9 75 Haulers Intercepted 2 | . 1 . . . . . . . . . . . . . . 1 . Recyclers Shooed 5 | . 1 . . 2 . . . . . . . . . . . . 2 Parts Field Recycled . | . . . . . . . . . . . . . . . . . . Retrieved Matter . | . . . . . . . . . . . . . . . . . . Parts Self-Destructed 64 | . . . 10 . . . . . 26 12 8 8 . . . . . Prevented . | . . . . . . . . . . . . . . . . . . Parts Restored . | . . . . . . . . . . . . . . . . . . Kills | -11 -10 -10 -10 -7 -7 -5 -5 -5 -5 -5 -5 -4 -4 -4 -4 -4 -3 ------- Run | Yrd Mat Min Sub Rec Scr Fac Was Fac Upp Upp Zhi Pro Fac Was Fac DSF Res Combat Hostiles Destroyed 78 | . . 8 10 . . 4 2 5 2 8 . 13 5 . . 2 19 Guns 40 | . . 8 5 . . 4 1 1 2 1 . . . . . 2 16 Cannons 4 | . . . . . . . . . . . . 2 . . . . 2 AOE 33 | . . . 5 . . . 1 4 . 7 . 11 5 . . . . Classes Destroyed 21 | . 2 2 4 1 . 2 1 1 1 1 . 3 . . . 1 2 Worker 1 | . . . . . . . . . . . . . . . . . 1 Builder 3 | . . . . . . 1 . 1 . . . . . . . . 1 Hauler 2 | . 1 . . . . . . . . . . . . . . 1 . Recycler 8 | . . . . 4 . 2 . . . . . . . . . . 2 Mechanic 2 | . . . . . . 1 . . . . . 1 . . . . . Drone 2 | . . . . . . . . . . . . 2 . . . . . Turret 2 | . . . 2 . . . . . . . . . . . . . . Watcher 2 | . 1 . . . . 1 . . . . . . . . . . . Swarmer 21 | . . . 4 . . . . . . 4 . 3 5 . . . 5 Grunt 20 | . . 2 1 . . 4 . 4 1 3 . 1 . . . . 4 Duelist 1 | . . . . . . . . . . . . 1 . . . . . Sentry 6 | . . . . . . . . . 1 1 . 1 . . . 1 2 Specialist 1 | . . . . . . . . . . . . . . . . 1 . Hunter 5 | . . . . . . . . . . . . 4 . . . . 1 Programmer 8 | . . . . . . . . 1 . . . 1 . . . . 6 Compactor 2 | . . . . . . . 2 . . . . . . . . . . Enhanced Grunt 1 | . . . . . . . . . . . 1 . . . . . . Cobbler 1 | . . . 1 . . . . . . . . . . . . . . Subdweller 5 | . . . 5 . . . . . . . . . . . . . . Scrapoid 1 | . . . . . . . . . . . . . . . . . 1 Samaritan 1 | . . . . . . . . . . 1 . . . . . . . Assembled 6 | . . 6 . . . . . . . . . . . . . . . Surgeon 1 | . . . . . . . . . 1 . . . . . . . . Wasp 1 | . . . . . . . . . 1 . . . . . . . . Best Kill Streak 6 | . 1 2 6 2 . 5 1 6 2 5 . 6 4 . . 1 4 Combat Bots Only 6 | . . 2 4 . . 3 1 5 2 5 . 6 4 . . 1 3 Max Kills in Single Turn 4 | . 1 1 2 1 . 2 1 4 1 4 1 3 4 . . 1 1 Gunslinging . | . . . . . . . . . . . . . . . . . . Exploded 4 | . . . 2 . . . 1 4 . 4 . 3 4 . . . . Melee . | . . . . . . . . . . . . . . . . . . Uniques/NPCs Destroyed . | . . . . . . . . . . . . . . . . . . Combat | -11 -10 -10 -10 -7 -7 -5 -5 -5 -5 -5 -5 -4 -4 -4 -4 -4 -3 -------- Run | Yrd Mat Min Sub Rec Scr Fac Was Fac Upp Upp Zhi Pro Fac Was Fac DSF Res Hostile Shots Fired 793 | . . 47 53 . . 36 . 10 15 8 . 54 96 . . 47 427 Missed 269 | . . 16 20 . . 12 . 4 4 1 . 22 36 . . 19 135 Hits 524 | . . 31 33 . . 24 . 6 11 7 . 32 60 . . 28 292 Melee 3 | . . 3 . . . . . . . . . . . . . . . Projectile 521 | . . 28 33 . . 24 . 6 11 7 . 32 60 . . 28 292 Critical Strikes 27 | . . 1 . . . 3 . 1 1 . . 1 4 . . . 16 Part Disruptions 3 | . . . . . . . . . . . . . . . . . 3 Damage Taken 12247 | . . 429 535 . . 825 63 431 238 136 883 819 1126 . . 412 6350 Core 2256 | . . 44 186 . . 110 23 17 18 . 110 129 285 . . 27 1307 Absorbed by Shields 10 | . . . . . . . . . . . . 10 . . . . . Ignored by Resistances 20 | . . . . . . . . . . . . . . . . . 20 Regen/Repaired (Parts) 510 | . . . . . . 8 333 85 64 . . . . . . 20 . Core Remaining (%) 59 | 100 . . . . 8 . . . . . . 59 . . . 72 . Volleys Fired 347 | . 13 39 60 10 . 26 15 8 7 6 11 25 17 4 . 10 96 Largest 5 | . 2 2 2 2 . 3 3 5 5 5 5 2 2 2 . 4 5 Hottest 338 | . 80 80 133 200 . 200 98 170 170 170 170 180 113 80 . 165 338 Shots Fired 730 | . 26 78 94 20 . 63 29 36 35 14 55 26 18 8 . 29 199 Gun 600 | . 26 78 73 . . 57 21 36 35 11 55 . 8 8 . 28 164 Cannon 59 | . . . . . . . . . . . . 14 10 . . . 35 Launcher 41 | . . . 17 . . . 8 . . 3 . 12 . . . 1 . Special 30 | . . . 4 20 . 6 . . . . . . . . . . . Kinetic 489 | . . 64 69 . . 55 21 36 35 11 55 . 8 . . 27 108 Thermal 157 | . 26 14 8 20 . 8 . . . . . 14 10 8 . . 49 Explosive 41 | . . . 17 . . . 8 . . 3 . 12 . . . 1 . Electromagnetic 43 | . . . . . . . . . . . . . . . . 1 42 Robot Hit Streak 19 | . 10 5 8 10 . 14 10 3 3 6 19 8 5 1 . 3 11 Robot Miss Streak 11 | . 2 4 6 3 . 5 3 6 11 2 3 4 8 2 . 4 9 Penetration Max 1 | . . . . . . 1 . . 1 . 1 . . . . . 1 Secondary Targets 10 | . . 3 . . . 2 . 1 1 . . . . . . 1 2 Max Gunslinging Chain 1 | . . 1 . . . 1 . 1 1 . . . . . . 1 1 Shots Hit Robots 391 | . 17 48 33 15 . 40 21 18 13 7 39 15 7 2 . 13 103 Core Hits 211 | . 6 22 22 9 . 15 5 13 11 11 7 20 6 2 . 8 54 Critical Kills 4 | . . . 1 . . . . . . . . . . . . . 3 Critical Parts Destroyed 8 | . . . . . . 2 . . 3 . 2 . . . . . 1 Critical Strikes 16 | . . . 1 1 . 3 2 . 3 . 2 . . . . . 4 Burn 2 | . . . . 1 . 1 . . . . . . . . . . . Destroy 14 | . . . 1 . . 2 2 . 3 . 2 . . . . . 4 Melee Attacks . | . . . . . . . . . . . . . . . . . . Impact . | . . . . . . . . . . . . . . . . . . Slashing . | . . . . . . . . . . . . . . . . . . Piercing . | . . . . . . . . . . . . . . . . . . Sneak Attacks . | . . . . . . . . . . . . . . . . . . Combat Hostiles . | . . . . . . . . . . . . . . . . . . Follow-up Attacks . | . . . . . . . . . . . . . . . . . . Damage Inflicted 16073 | . 176 412 1302 167 . 1151 1862 1108 616 1075 1098 2873 566 41 . 414 3212 Guns 7817 | . 176 412 393 . . 1097 474 487 616 146 1098 . 75 41 . 366 2436 Cannons 1162 | . . . . . . . . . . . . 316 75 . . . 771 Explosions 6865 | . . . 909 . . . 1388 621 . 929 . 2557 413 . . 48 . Melee . | . . . . . . . . . . . . . . . . . . Ramming 8 | . . . . . . . . . . . . . 3 . . . 5 Kinetic 6625 | . . 314 393 . . 1097 474 487 616 146 1098 . 75 . . 341 1584 Thermal 3083 | . 176 98 . 167 . 54 . 621 . . . 316 488 41 . . 1122 Explosive 5831 | . . . 909 . . . 1388 . . 929 . 2557 . . . 48 . Electromagnetic 526 | . . . . . . . . . . . . . . . . 25 501 Impact . | . . . . . . . . . . . . . . . . . . Slashing . | . . . . . . . . . . . . . . . . . . Piercing . | . . . . . . . . . . . . . . . . . . Highest Corruption 35 | . . 5 5 5 . . . . . . . . . . . . 35 Average Corruption 7 | . . 5 5 5 . . . . . . . . . . . . 19 Corruption Purged . | . . . . . . . . . . . . . . . . . . Corruption Blocked . | . . . . . . . . . . . . . . . . . . Effects 123 | . . . 55 22 . . . . . . . . . . . . 46 Message Errors 31 | . . . 18 5 . . . . . . . . . . . . 8 Matter Fused 28 | . . . 16 6 . . . . . . . . . . . . 6 Heat Flow Errors 10 | . . . 3 3 . . . . . . . . . . . . 4 Energy Discharges 15 | . . . 6 3 . . . . . . . . . . . . 6 Parts Fused 1 | . . . . 1 . . . . . . . . . . . . . Data Loss (minor) 13 | . . . 6 2 . . . . . . . . . . . . 5 Data Loss (major) 9 | . . . 4 1 . . . . . . . . . . . . 4 Misfires 2 | . . . 1 . . . . . . . . . . . . . 1 Alerts 3 | . . . 1 1 . . . . . . . . . . . . 1 Misdirections 4 | . . . . . . . . . . . . . . . . . 4 Weapon Failures 7 | . . . . . . . . . . . . . . . . . 7 Overload Shots . | . . . . . . . . . . . . . . . . . . Overflow Damage 329 | . . . . . . . . 31 . 32 . 196 70 . . . . Projectiles . | . . . . . . . . . . . . . . . . . . Explosions 329 | . . . . . . . . 31 . 32 . 196 70 . . . . Melee . | . . . . . . . . . . . . . . . . . . Knockbacks . | . . . . . . . . . . . . . . . . . . Impact . | . . . . . . . . . . . . . . . . . . Kinetic . | . . . . . . . . . . . . . . . . . . Secondary . | . . . . . . . . . . . . . . . . . . Self-Inflicted Damage 237 | . . . 37 . . . . . . . . 178 22 . . . . Shots 4 | . . . 1 . . . . . . . . 2 1 . . . . Rammed 1 | . . 1 . . . . . . . . . . . . . . . Targets Rammed 3 | . . 1 . . . . . . . . . . 1 . . . 1 Kicked 2 | . . . . . . . . . . . . . 1 . . . 1 Crushed . | . . . . . . . . . . . . . . . . . . Highest Temperature 369 | . 126 228 249 150 . 80 . 3 27 . . 75 24 20 . 6 369 Average Temperature 57 | . 44 41 65 59 . 33 . 3 22 . . 19 8 11 . 3 97 Received Heat Transfer 1574 | . . 86 144 . . 210 . . 108 39 . 87 190 . . 108 602 Effects 3 | . . . 1 . . . . . . . . . . . . . 2 Shutdowns 1 | . . . . . . . . . . . . . . . . . 1 Energy Bleed 1 | . . . 1 . . . . . . . . . . . . . . Short Circuit 1 | . . . . . . . . . . . . . . . . . 1 Siege Activations . | . . . . . . . . . . . . . . . . . . Martial Activations . | . . . . . . . . . . . . . . . . . . Shielding Activations . | . . . . . . . . . . . . . . . . . . Robots Disrupted . | . . . . . . . . . . . . . . . . . . Combat Hostiles . | . . . . . . . . . . . . . . . . . . Robots Corrupted 1 | . . . . . . . . . . . . . . . . . 1 Combat Hostiles 1 | . . . . . . . . . . . . . . . . . 1 Parts Fried 3 | . . . . . . . . . . . . . . . . . 3 Impact Corruptions . | . . . . . . . . . . . . . . . . . . Robots Melted 1 | . . . . . . 1 . . . . . . . . . . . Combat Hostiles . | . . . . . . . . . . . . . . . . . . Parts Melted 5 | . . . . . . 3 . . . . . . . . . 1 1 Heat Transferred 4516 | . 400 225 . 1360 . 560 . 450 . . . . 300 111 . . 1110 Parts Sabotaged . | . . . . . . . . . . . . . . . . . . Parts Stolen . | . . . . . . . . . . . . . . . . . . Parts Stripped . | . . . . . . . . . . . . . . . . . . Power Chain Reactions 1 | . . . . . . . . . . . . . 1 . . . . Alert | -11 -10 -10 -10 -7 -7 -5 -5 -5 -5 -5 -5 -4 -4 -4 -4 -4 -3 ------- Run | Yrd Mat Min Sub Rec Scr Fac Was Fac Upp Upp Zhi Pro Fac Was Fac DSF Res Maximum Alert Level 4 | . . . . . . 1 . 3 . . . . 4 2 . 2 1 Low Security (%) 59 | 100 100 100 . 100 . 77 100 52 . . . . . . 100 13 2 Level 1 31 | . . . . . . 22 . 1 . . . . . 93 . 21 97 Level 2 4 | . . . . . . . . 27 . . . . . 6 . 65 . Level 3 2 | . . . . . . . . 18 . . . . 43 . . . . Level 4 1 | . . . . . . . . . . . . . 56 . . . . Level 5 . | . . . . . . . . . . . . . . . . . . High Security . | . . . . . . . . . . . . . . . . . . Max Security . | . . . . . . . . . . . . . . . . . . Sterilizations 1 | . . . . . . . . . . . . . . . . 1 . Peak Influence 1247 | . 7 72 . 62 . 228 82 1008 . . . . 1247 413 144 581 334 Initial 956 | . . . . 62 . . 58 . . . . . 956 413 144 104 326 Average 167 | . . 7 . 4 . 133 18 335 . . . . 1102 320 144 462 249 Influence Increases 6106 | . 14 80 195 20 . 533 98 1138 573 218 18 312 1266 80 5 617 939 Destroy 0b10 Robot/C 2340 | . . 40 140 . . 260 . 320 340 160 . 220 100 . . 220 540 Destroy 0b10 Robot/NC 145 | . 10 . . 20 . 30 . 25 . . 15 15 . . . 10 20 Destroy Leader 390 | . 4 10 10 . . 62 . 94 30 20 . 30 10 . . 30 90 Allied During Kill 1095 | . . . . . . 90 . 400 203 38 3 2 . . . 245 114 Successful Hack 5 | . . . . . . . . . . . . . . . 5 . . Disable Machine 300 | . . . . . . 15 . 75 . . . . 150 . . 15 45 Destroy Structure 676 | . . . . . . 76 98 224 . . . . 76 80 . 82 40 Advance Influence 900 | . . . . . . . . . . . . . 900 . . . . Lose Combat Pursuer 255 | . . 30 45 . . . . . . . . 45 30 . . 15 90 Influence Decreases 5853 | . 14 80 64 151 . 365 266 140 600 430 777 223 173 1055 63 185 1267 Entered New Map 2659 | . . . . 69 . . 110 . 370 186 759 . 33 769 63 45 255 Time Decay 2234 | . 14 80 64 82 . 265 126 100 230 214 18 183 90 286 . . 482 Lost Part 520 | . . . . . . 40 10 . . 10 . 20 50 . . . 390 Lost Ally 440 | . . . . . . 60 20 40 . 20 . 20 . . . 140 140 Squads Dispatched 19 | . . . . . . 5 . 2 . . . 1 2 . . 2 7 Investigation 6 | . . . . . . 1 . . . . . . 1 . . . 4 Extermination 3 | . . . . . . 1 . . . . . . . . . . 2 Reinforcement 5 | . . . . . . 1 . 2 . . . . . . . 2 . Assault 1 | . . . . . . . . . . . . 1 . . . . . Garrison 4 | . . . . . . 2 . . . . . . 1 . . . 1 Intercept . | . . . . . . . . . . . . . . . . . . Searches Triggered . | . . . . . . . . . . . . . . . . . . Construction Impeded 2 | . . . . . . 1 . 1 . . . . . . . . . Haulers Reinforced . | . . . . . . . . . . . . . . . . . . Active Scanning Responses . | . . . . . . . . . . . . . . . . . . Cargo Convoy Interrupts . | . . . . . . . . . . . . . . . . . . Stealth | -11 -10 -10 -10 -7 -7 -5 -5 -5 -5 -5 -5 -4 -4 -4 -4 -4 -3 --------- Run | Yrd Mat Min Sub Rec Scr Fac Was Fac Upp Upp Zhi Pro Fac Was Fac DSF Res Distress Signals 6 | . . . . . . 1 . 1 . . . . 1 . . . 3 Communications Jammed 1 | . . . . . . . . . . . . . . . . . 1 Distress Signals 1 | . . . . . . . . . . . . . . . . . 1 Times Spotted 175 | . 3 14 12 . . 16 6 14 17 5 . 26 12 6 . 6 38 Peak Tracking Total 8 | . 1 2 4 . . 6 5 4 7 4 . 5 5 4 . 3 8 Tactical Retreats 13 | . . 3 2 . . . . . . . . 2 2 1 . 1 2 Traps | -11 -10 -10 -10 -7 -7 -5 -5 -5 -5 -5 -5 -4 -4 -4 -4 -4 -3 ------- Run | Yrd Mat Min Sub Rec Scr Fac Was Fac Upp Upp Zhi Pro Fac Was Fac DSF Res Traps Triggered 7 | . . . 1 . . 3 . 1 . . . . 1 . . . 1 Indirectly . | . . . . . . . . . . . . . . . . . . Trap Hack Attempts . | . . . . . . . . . . . . . . . . . . Triggered . | . . . . . . . . . . . . . . . . . . Disarmed . | . . . . . . . . . . . . . . . . . . Reprogrammed . | . . . . . . . . . . . . . . . . . . Reused . | . . . . . . . . . . . . . . . . . . Traps Extracted . | . . . . . . . . . . . . . . . . . . Installed . | . . . . . . . . . . . . . . . . . . Triggered . | . . . . . . . . . . . . . . . . . . Machines | -11 -10 -10 -10 -7 -7 -5 -5 -5 -5 -5 -5 -4 -4 -4 -4 -4 -3 ---------- Run | Yrd Mat Min Sub Rec Scr Fac Was Fac Upp Upp Zhi Pro Fac Was Fac DSF Res Machines Disabled 28 | . . . 3 . . 1 . 5 1 . 3 1 10 . . 1 3 Max in Single Turn 10 | . . . 1 . . . . 4 1 . 1 1 10 . . 1 1 Garrison Access 2 | . . . . . . 1 . . . . . . . . . . 1 Machines Repaired . | . . . . . . . . . . . . . . . . . . Machines Dismantled . | . . . . . . . . . . . . . . . . . . Machines Sabotaged . | . . . . . . . . . . . . . . . . . . Overloaded Fab Kills . | . . . . . . . . . . . . . . . . . . Hacking | -11 -10 -10 -10 -7 -7 -5 -5 -5 -5 -5 -5 -4 -4 -4 -4 -4 -3 --------- Run | Yrd Mat Min Sub Rec Scr Fac Was Fac Upp Upp Zhi Pro Fac Was Fac DSF Res Machines Accessed 14 | . . 1 2 . 1 2 . . . . . . 1 . 1 . 6 Terminals 2 | . . . . . . . . . . . . . . . 1 . 1 Fabricators . | . . . . . . . . . . . . . . . . . . Repair Stations . | . . . . . . . . . . . . . . . . . . Recycling Units 5 | . . . . . . 1 . . . . . . . . . . 4 Scanalyzers . | . . . . . . . . . . . . . . . . . . Garrison Access 3 | . . . . . . 1 . . . . . . 1 . . . 1 Total Hacks 25 | . . 1 5 . 1 4 . . . . . . 3 . 1 . 10 Successful 15 | . . 1 5 . 1 2 . . . . . . . . 1 . 5 Failed 10 | . . . . . . 2 . . . . . . 3 . . . 5 Catastrophic 3 | . . . . . . . . . . . . . 1 . . . 2 Database Lockouts . | . . . . . . . . . . . . . . . . . . Manual 9 | . . . . . . 2 . . . . . . . . . . 7 Terminals 3 | . . . . . . . . . . . . . . . 1 . 2 Fabricators . | . . . . . . . . . . . . . . . . . . Repair Stations . | . . . . . . . . . . . . . . . . . . Recycling Units 9 | . . . . . . 2 . . . . . . . . . . 7 Scanalyzers . | . . . . . . . . . . . . . . . . . . Garrison Access 6 | . . . . . . 2 . . . . . . 3 . . . 1 Terminal Hacks 9 | . . 1 5 . 1 . . . . . . . . . 1 . 1 Record 4 | . . . 4 . . . . . . . . . . . . . . Prototype ID Bank 1 | . . . . . . . . . . . . . . . . . 1 Open Door 1 | . . 1 . . . . . . . . . . . . . . . Open DSF 1 | . . . . . . . . . . . . . . . 1 . . Proto ID Catalog 2 | . . . 1 . 1 . . . . . . . . . . . . Fabricator Hacks . | . . . . . . . . . . . . . . . . . . Repair Station Hacks . | . . . . . . . . . . . . . . . . . . Recycling Unit Hacks . | . . . . . . . . . . . . . . . . . . Scanalyzer . | . . . . . . . . . . . . . . . . . . Garrison Access Hacks 2 | . . . . . . 1 . . . . . . . . . . 1 Seal Access 2 | . . . . . . 1 . . . . . . . . . . 1 Unauthorized Hacks 4 | . . . . . . 1 . . . . . . . . . . 3 Terminals . | . . . . . . . . . . . . . . . . . . Fabricators . | . . . . . . . . . . . . . . . . . . Repair Stations . | . . . . . . . . . . . . . . . . . . Recycling Units 4 | . . . . . . 1 . . . . . . . . . . 3 Fedlink 1 | . . . . . . . . . . . . . . . . . 1 Scrapoids 3 | . . . . . . 1 . . . . . . . . . . 2 Scanalyzers . | . . . . . . . . . . . . . . . . . . Garrison Access . | . . . . . . . . . . . . . . . . . . Data Cores Recovered . | . . . . . . . . . . . . . . . . . . Used . | . . . . . . . . . . . . . . . . . . Hacking Detections 4 | . . . . . . . . . . . . . 1 . . . 3 Full Trace Events 2 | . . . . . . . . . . . . . 1 . . . 1 Feedback Events . | . . . . . . . . . . . . . . . . . . Feedback Blocked . | . . . . . . . . . . . . . . . . . . Robot Schematics Acquired . | . . . . . . . . . . . . . . . . . . Robots Built . | . . . . . . . . . . . . . . . . . . Authchips . | . . . . . . . . . . . . . . . . . . Time . | . . . . . . . . . . . . . . . . . . Total Robot Build Rating . | . . . . . . . . . . . . . . . . . . Part Schematics Acquired . | . . . . . . . . . . . . . . . . . . Parts Built . | . . . . . . . . . . . . . . . . . . Authchips . | . . . . . . . . . . . . . . . . . . Time . | . . . . . . . . . . . . . . . . . . Total Part Build Rating . | . . . . . . . . . . . . . . . . . . Part Studies Acquired . | . . . . . . . . . . . . . . . . . . Parts Repaired . | . . . . . . . . . . . . . . . . . . Time . | . . . . . . . . . . . . . . . . . . Parts Recycled . | . . . . . . . . . . . . . . . . . . Recycled Matter . | . . . . . . . . . . . . . . . . . . Retrieved Matter . | . . . . . . . . . . . . . . . . . . Retrieved Components . | . . . . . . . . . . . . . . . . . . Parts Scanalyzed . | . . . . . . . . . . . . . . . . . . Part Schematics Acquired . | . . . . . . . . . . . . . . . . . . Parts Damaged . | . . . . . . . . . . . . . . . . . . Bothacking | -11 -10 -10 -10 -7 -7 -5 -5 -5 -5 -5 -5 -4 -4 -4 -4 -4 -3 ------------ Run | Yrd Mat Min Sub Rec Scr Fac Was Fac Upp Upp Zhi Pro Fac Was Fac DSF Res Used RIF Installer . | . . . . . . . . . . . . . . . . . . Robots Hacked . | . . . . . . . . . . . . . . . . . . Non-combat . | . . . . . . . . . . . . . . . . . . Combat . | . . . . . . . . . . . . . . . . . . Robot Hacks Applied . | . . . . . . . . . . . . . . . . . . Relay Couplers Released . | . . . . . . . . . . . . . . . . . . Fabnet Peak Effective % . | . . . . . . . . . . . . . . . . . . Robots Rewired 1 | . . . . . . . . . . . . 1 . . . . . Allies Hacked . | . . . . . . . . . . . . . . . . . . Hacks Repelled . | . . . . . . . . . . . . . . . . . . Allies | -11 -10 -10 -10 -7 -7 -5 -5 -5 -5 -5 -5 -4 -4 -4 -4 -4 -3 -------- Run | Yrd Mat Min Sub Rec Scr Fac Was Fac Upp Upp Zhi Pro Fac Was Fac DSF Res Total Allies 48 | . . . . . . 5 19 . . . . 1 . 18 . . 5 Largest Group 19 | . . . . . . 5 19 16 7 3 2 1 . 18 16 16 5 Highest-Rated Group 702 | . . . . . . 235 702 627 278 134 93 30 . 638 587 587 320 Highest-Rated Ally 64 | . . . . . . 51 50 50 47 47 47 30 . 50 50 50 64 Initial UFD Resources 41 | . . . . . . 38 35 35 35 35 35 39 39 39 39 39 41 Total Orders 9 | . . 2 6 . . 1 . . . . . . . . . . . FOLLOW 1 | . . 1 . . . . . . . . . . . . . . . EXPLORE 3 | . . . 3 . . . . . . . . . . . . . . RETURN 5 | . . 1 3 . . 1 . . . . . . . . . . . Ally Attacks 489 | . . . . . . 77 34 78 30 2 . 2 . 129 . 70 67 Total Damage 14867 | . . . . . . 1963 1857 1962 1467 . . 86 . 4369 . 1709 1454 Kills 73 | . . . . . . 10 6 15 16 . . . . 8 . 9 9 Allies Corrupted 2 | . . . . . . . . . . . . . . . . . 2 Allies Melted 1 | . . . . . . 1 . . . . . . . . . . . Intel | -11 -10 -10 -10 -7 -7 -5 -5 -5 -5 -5 -5 -4 -4 -4 -4 -4 -3 ------- Run | Yrd Mat Min Sub Rec Scr Fac Was Fac Upp Upp Zhi Pro Fac Was Fac DSF Res Active Infowar (turns) 2149 | . . . 237 . . . . . . . . 955 . . . 79 878 Optics 237 | . . . 237 . . . . . . . . . . . . . . Sensors 97 | . . . . . . . . . . . . . . . . . 97 Decoding 1267 | . . . . . . . . . . . . 955 . . . . 312 Spoofing 599 | . . . . . . . . . . . . . . . . 79 520 Jamming 356 | . . . . . . . . . . . . . . . . . 356 Robot Analysis Total . | . . . . . . . . . . . . . . . . . . Derelict Logs Recovered 4 | . . 1 1 . . . . . 1 . . 1 . . . . . Drone Launches 10 | . . 1 8 1 . . . . . . . . . . . . . Drone Recoveries 10 | . . 1 8 . . 1 . . . . . . . . . . . Decoded 0b10 Intel 9 | . . . . . . . . . . . . . . . . . 9 Traps 2 | . . . . . . . . . . . . . . . . . 2 Emergency Access 1 | . . . . . . . . . . . . . . . . . 1 Items 4 | . . . . . . . . . . . . . . . . . 4 Machines 2 | . . . . . . . . . . . . . . . . . 2 Exploration | -11 -10 -10 -10 -7 -7 -5 -5 -5 -5 -5 -5 -4 -4 -4 -4 -4 -3 ------------- Run | Yrd Mat Min Sub Rec Scr Fac Was Fac Upp Upp Zhi Pro Fac Was Fac DSF Res Turns Passed 13434 | 68 273 956 2376 1075 1780 782 620 358 490 450 718 1170 192 638 3 227 1258 Spaces Moved 7502 | 48 142 509 1133 236 1018 488 378 257 350 349 488 743 124 455 3 115 666 Core 337 | 16 . . . . . . . . . . . 30 . 215 . . 76 Treads 825 | 32 142 509 142 . . . . . . . . . . . . . . Legs 6241 | . . . 991 236 1018 488 378 257 350 349 488 713 124 240 3 115 491 Wheels . | . . . . . . . . . . . . . . . . . . Hover 99 | . . . . . . . . . . . . . . . . . 99 Flight . | . . . . . . . . . . . . . . . . . . Fastest Speed 48 | 50 160 160 130 130 130 123 120 120 120 120 110 90 100 50 115 115 48 Average Speed 125 | 123 160 160 133 130 130 129 120 120 120 120 113 115 101 83 115 152 124 Slowest Speed 550 | 160 160 160 160 130 130 130 123 120 120 120 120 250 120 170 115 185 550 Overloaded Moves . | . . . . . . . . . . . . . . . . . . Propulsion Burnouts . | . . . . . . . . . . . . . . . . . . Robots Hopped 2 | . . . . . . 2 . . . . . . . . . . . Potential Cave-ins . | . . . . . . . . . . . . . . . . . . Cave-ins Triggered . | . . . . . . . . . . . . . . . . . . Exploration Rate (%) 52 | 3 34 80 66 40 73 12 94 12 65 55 96 76 4 96 . 74 20 Regions Visited 17 Branch Regions 8 Pre-discovered Areas 1 | . . . 1 . . . . . . . . . . . . . . Known Exits Taken 1 | . . . . . . . . . . . . . . . 1 . . Unknown Exits Taken 11 | 1 1 1 1 1 1 . . 1 1 1 1 1 . . . . . Scrap Searched 15 | . . 1 3 . 3 . . . 2 3 . 3 . . . . . Spaces Dug 124 | . . . . . . . 56 . . . . 68 . . . . . Terrain Destroyed 549 | . . . 99 . . 17 116 32 10 37 1 180 39 . . 3 15 Melee . | . . . . . . . . . . . . . . . . . . Projectile 65 | . . . 2 . . 17 3 5 10 4 1 6 2 . . . 15 AOE 484 | . . . 97 . . . 113 27 . 33 . 174 37 . . 3 . Terrain Rammed . | . . . . . . . . . . . . . . . . . . Walls Destroyed . | . . . . . . . . . . . . . . . . . . Machines Disabled . | . . . . . . . . . . . . . . . . . . Actions | -11 -10 -10 -10 -7 -7 -5 -5 -5 -5 -5 -5 -4 -4 -4 -4 -4 -3 --------- Run | Yrd Mat Min Sub Rec Scr Fac Was Fac Upp Upp Zhi Pro Fac Was Fac DSF Res Total 10905 | 57 161 585 1904 966 1475 587 521 284 400 368 621 1025 171 710 2 145 923 Wait 2812 | . . 27 676 712 454 51 120 18 42 10 117 229 22 224 . . 110 Move 7483 | 47 141 508 1132 235 1017 484 377 256 349 348 487 742 124 454 2 114 666 Hop 2 | . . . . . . 2 . . . . . . . . . . . Pick Up 51 | 5 5 1 7 1 2 1 . . . . . 2 2 7 . 4 14 Fast Attach 66 | . 2 2 4 1 . 10 4 2 1 . 5 1 2 5 . 10 17 Attach 44 | 5 . . 5 3 1 2 . . . . . 7 2 4 . . 15 Detach 15 | . . 1 3 . . 2 1 . . . . 3 1 4 . . . Swap 16 | . . 2 7 . . . 1 . . 4 . 1 . . . . 1 Drop 53 | . . 4 10 4 1 9 3 . 1 . 1 2 . 8 . 7 3 Fire 347 | . 13 39 60 10 . 26 15 8 7 6 11 25 17 4 . 10 96 Melee . | . . . . . . . . . . . . . . . . . . Ram . | . . . . . . . . . . . . . . . . . . Kick 2 | . . . . . . . . . . . . . 1 . . . 1 Crush 1 | . . 1 . . . . . . . . . . . . . . . Escape Stasis . | . . . . . . . . . . . . . . . . . . Rewire 13 | . . . . . . . . . . . . 13 . . . . . Trap . | . . . . . . . . . . . . . . . . . . Miscellaneous . | . . . . . . . . . . . . . . . . . . Route ------- -11/Scrapyard -10/Materials -10/Mines (discovered 2 exits: Mat / *Sub) -10/Subcaves (discovered 3 exits: *Mat x2 / [*Rec]) -7/Recycling (discovered 2 exits: *Fac / *Scr) -7/Scraptown (discovered 2 exits: *Fac x2) -5/Factory -5/Waste -5/Factory -5/Upper Caves -5/Upper Caves -5/Zhirov -4/Proximity Caves -4/Factory -4/Waste -4/Factory -4/DSF -3/Research (discovered 1 exit: Arm) History --------- Turn | Location | Event 2 | -11/Scrapyard | Met Revision 17 3 | -11/Scrapyard | Discovered new exit (range 16) 69 | -11/Scrapyard | Entered Materials 320 | -10/Materials | Build established: Mutant 328 | -10/Materials | Discovered new exit (range 10) 342 | -10/Materials | Entered Mines 367 | -10/Mines | Received a Rocket Launcher from a helpful Derelict 601 | -10/Mines | Found the Drone Emporium 607 | -10/Mines | Found Prototype Device 607 | -10/Mines | Identified Sensor Drone Bay 687 | -10/Mines | Assembled infested the area 1142 | -10/Mines | Identified exit to Materials 1275 | -10/Mines | Discovered new exit (range 15) 1298 | -10/Mines | Entered Subcaves 1377 | -10/Subcaves | Discovered new exit (range 63) 1451 | -10/Subcaves | Learned Materials terminal intel 1462 | -10/Subcaves | A swath of the cavern ceiling suddenly collapsed 1653 | -10/Subcaves | Visited 4L-MR0's lab 1667 | -10/Subcaves | Found Prototype Device 1684 | -10/Subcaves | Found Cargo Legs 1686 | -10/Subcaves | Attached Cargo Legs, gained temporary slots: Utility x2 1858 | -10/Subcaves | Shifting Twisted Machinery released Flamer 1945 | -10/Subcaves | Shifting Twisted Machinery released Battle Rifle 2060 | -10/Subcaves | Core integrity fell below 50% 2130 | -10/Subcaves | Curiously followed by a Cobbler waking with a query about "LVR3C" 2425 | -10/Subcaves | Ambushed by Subdweller buried in earth 2485 | -10/Subcaves | Visited Clippyterm 2489 | -10/Subcaves | Learned Factory garrison access intel 2596 | -10/Subcaves | Discovered new exit (range 16) 2598 | -10/Subcaves | Identified exit to Materials 3136 | -10/Subcaves | A swath of the cavern ceiling suddenly collapsed 3272 | -10/Subcaves | Learned location of Zion (-6) 3272 | -10/Subcaves | Met a Zionite searching for "candidates" 3335 | -10/Subcaves | Core integrity fell below 20% 3364 | -10/Subcaves | Discovered new exit (range 10) 3674 | -10/Subcaves | Entered Recycling 4679 | -7/Recycling | Discovered new exit (range 11) 4717 | -7/Recycling | Scanned before Scraplab entrance 4736 | -7/Recycling | Entered Scraplab 4747 | -7/Recycling | Discovered new exit (range 2) 4749 | -7/Recycling | Entered Scraptown 4749 | -7/Scraptown | Accompanied by 1 ally 4749 | -7/Scraptown | System corruption cleaned by C-Scrubber 5361 | -7/Scraptown | Discovered new exit (range 11) 5401 | -7/Scraptown | Visited Shadow of the Wyrm 5436 | -7/Scraptown | Visited Science Testing Area 5923 | -7/Scraptown | Visited UFD Registry 5923 | -7/Scraptown | Registered with UFD as "Pyrohacker" 5966 | -7/Scraptown | Visited Botcube Research 5995 | -7/Scraptown | Visited Junk Repository 6055 | -7/Scraptown | Visited Curators Association 6104 | -7/Scraptown | Visited Supply Room 6122 | -7/Scraptown | Visited Junk Repository 6142 | -7/Scraptown | Visited Scrapoid Pod Storage 6168 | -7/Scraptown | Visited Research Penetration Think Tank 6203 | -7/Scraptown | Visited A0-MCA Data Center 6212 | -7/Scraptown | Given a B rating by A0-MCA 6216 | -7/Scraptown | Found A0-MCA's Component Scanner 6248 | -7/Scraptown | Visited Science Guys 6454 | -7/Scraptown | Met Optimus 6454 | -7/Scraptown | Accepted into 0bPrime 6520 | -7/Scraptown | Discovered new exit (range 5) 6529 | -7/Scraptown | Entered Factory 6529 | -5/Factory | Accompanied by 1 ally 6529 | -5/Factory | Evolved 10 slots: Power x1, Propulsion x2, Utility x4, Weapon x3 6530 | -5/Factory | Loaded intel: 4 garrison access locations 6647 | -5/Factory | Discovered new exit (range 15) 6721 | -5/Factory | Scrapoid reinforcements arrived 6724 | -5/Factory | Garrison activated, responded to threat 6748 | -5/Factory | Found Scrap Suit 6763 | -5/Factory | Lost 3 parts (1p1u1w) 6772 | -5/Factory | Lost 3 allies 7029 | -5/Factory | Build established: Scavenger-Gunner 7311 | -5/Factory | Sucked down chute 7311 | -5/Factory | Entered Waste 7343 | -5/Waste | Spotted C-40 Crusher 7347 | -5/Waste | Destroyed C-40 Crusher 7362 | -5/Waste | Found Prototype Launcher 7362 | -5/Waste | Identified Ragnarok Missile Launcher 7378 | -5/Waste | Spotted C-40 Crusher 7386 | -5/Waste | Spotted C-40 Crusher 7392 | -5/Waste | Spotted C-40 Crusher 7425 | -5/Waste | Spotted C-40 Crusher 7456 | -5/Waste | Spotted C-40 Crusher 7472 | -5/Waste | Warlord forces began an assault 7477 | -5/Waste | Allies destroyed C-40 Crusher 7478 | -5/Waste | Destroyed C-40 Crusher 7480 | -5/Waste | Allies destroyed C-40 Crusher 7484 | -5/Waste | Allies destroyed C-40 Crusher 7484 | -5/Waste | Allies destroyed C-40 Crusher 7510 | -5/Waste | Lost 3 allies 7612 | -5/Waste | Identified Sfc. Transmogrifier 7713 | -5/Waste | Discovered new exit (range 11) 7931 | -5/Waste | Entered Factory 7931 | -5/Factory | Accompanied by 16 allies 8029 | -5/Factory | Allied Derelicts emerged from ambush trap array 8250 | -5/Factory | Lost 11 allies 8253 | -5/Factory | Discovered new exit (range 14) 8289 | -5/Factory | Entered Upper Caves 8289 | -5/Upper Caves | Accompanied by 7 allies 8335 | -5/Upper Caves | Attracted the attention of an 0b10 outpost 8555 | -5/Upper Caves | Encountered a Warlord checkpoint 8757 | -5/Upper Caves | Discovered new exit (range 13) 8779 | -5/Upper Caves | Entered another Upper Caves area 8779 | -5/Upper Caves | Accompanied by 3 allies 8991 | -5/Upper Caves | Attracted the attention of an 0b10 checkpoint 9213 | -5/Upper Caves | Discovered new exit (range 5) 9229 | -5/Upper Caves | Entered Zhirov 9229 | -5/Zhirov | Accompanied by 2 allies 9229 | -5/Zhirov | Discovered new exit (range 3) 9251 | -5/Zhirov | Met Zhirov 9329 | -5/Zhirov | Cloak Generator disabled 9329 | -5/Zhirov | Attacked by Zhirov 9339 | -5/Zhirov | Enhanced Grunts warped into view 9353 | -5/Zhirov | Zhirov detonated his lab 9384 | -5/Zhirov | Lost 11 parts (1p2n3u5w) 9384 | -5/Zhirov | Lost 7 allies 9660 | -5/Zhirov | Build established: Mutant 9947 | -5/Zhirov | Entered Proximity Caves 9950 | -4/Proximity Caves | Spotter reported a threat 9950 | -4/Proximity Caves | Spotter reported a threat 9992 | -4/Proximity Caves | Build established: Scavenger-Mutant 10003 | -4/Proximity Caves | Spotter reported a threat 10003 | -4/Proximity Caves | Spotter reported a threat 10137 | -4/Proximity Caves | Spotter reported a threat 10224 | -4/Proximity Caves | Spotter reported a threat 10308 | -4/Proximity Caves | Build established: Mutant 10312 | -4/Proximity Caves | Spotter reported a threat 10483 | -4/Proximity Caves | Spotter reported a threat 10536 | -4/Proximity Caves | Spotter reported a threat 10798 | -4/Proximity Caves | Spotter reported a threat 10962 | -4/Proximity Caves | Attracted the attention of an 0b10 outpost 11108 | -4/Proximity Caves | Discovered new exit (range 9) 11117 | -4/Proximity Caves | Entered Factory 11117 | -4/Factory | Evolved 2 slots: Utility x2 11272 | -4/Factory | Garrison activated, responded to threat 11309 | -4/Factory | Sucked down chute 11309 | -4/Factory | Entered Waste 11338 | -4/Waste | Lost 4 parts (1p1n2w) 11342 | -4/Waste | Spotted C-40 Crusher 11342 | -4/Waste | Spotted C-40 Crusher 11361 | -4/Waste | Spotted C-40 Crusher 11367 | -4/Waste | Found Prototype Device 11395 | -4/Waste | Identified Adv. Kinecellerator 11429 | -4/Waste | Spotted C-40 Crusher 11429 | -4/Waste | Spotted C-40 Crusher 11448 | -4/Waste | Discovered new exit (range 11) 11454 | -4/Waste | Spotted C-40 Crusher 11470 | -4/Waste | Warlord forces began an assault 11480 | -4/Waste | Allies destroyed C-40 Crusher 11483 | -4/Waste | Allies destroyed C-40 Crusher 11502 | -4/Waste | Allies destroyed C-40 Crusher 11513 | -4/Waste | Allies destroyed C-40 Crusher 11519 | -4/Waste | Allies destroyed C-40 Crusher 11523 | -4/Waste | Allies destroyed C-40 Crusher 11947 | -4/Waste | Entered Factory 11947 | -4/Factory | Accompanied by 16 allies 11950 | -4/Factory | Identified exit to DSF 11950 | -4/Factory | Entered DSF 11950 | -4/DSF | Accompanied by 16 allies 11978 | -4/DSF | Additional patrols routed to DSF 11987 | -4/DSF | Discovered new exit (range 11) 12032 | -4/DSF | Sterilization system engaged 12035 | -4/DSF | Lost 7 allies 12052 | -4/DSF | Ambient heat levels rising (+10) 12067 | -4/DSF | Ambient heat levels rising (+10) 12082 | -4/DSF | Ambient heat levels rising (+10) 12097 | -4/DSF | Ambient heat levels rising (+10) 12112 | -4/DSF | Ambient heat levels rising (+10) 12127 | -4/DSF | Ambient heat levels rising (+10) 12142 | -4/DSF | Ambient heat levels rising (+10) 12157 | -4/DSF | Ambient heat levels rising (+10) 12172 | -4/DSF | Ambient heat levels rising (+10) 12175 | -4/DSF | Lost 3 allies 12177 | -4/DSF | Entered Research 12177 | -3/Research | Accompanied by 4 allies 12177 | -3/Research | Evolved 2 slots: Utility x1, Weapon x1 12178 | -3/Research | Identified exit to Armory 12478 | -3/Research | Build established: Hacker-Executioner 12522 | -3/Research | Loaded intel: 5 recycling unit locations 12553 | -3/Research | Garrison activated, responded to threat 12737 | -3/Research | Lost 3 allies 12752 | -3/Research | Lost 5 parts (2u3w) 12805 | -3/Research | System corruption reached 10% 12897 | -3/Research | Lost 12 parts (1p4n1u6w) 12918 | -3/Research | Core integrity fell below 50% 13076 | -3/Research | Lost 7 parts (1p4n2w) 13121 | -3/Research | Scrapoid reinforcements arrived 13191 | -3/Research | Lost 3 allies 13314 | -3/Research | Spotted B-86 Titan 13366 | -3/Research | System corruption reached 30% 13386 | -3/Research | Core integrity fell below 20% 13435 | -3/Research | Destroyed by P-80 Master with Gamma Rifle Last Messages --------------- Imp. Antigrav System destroyed. Critical hit (Burn: +50). EM Shield destroyed. Critical hit (Burn: +37). R-10 Processor destroyed. System corrupted: Matter fused (-7). Connecting with Recycling Unit... >>Force(Scrapoids) UFD!MEMBER UFD!ALLOCATE<48-3=45> UFD!ETA<28> UFD!SANITIZING UFD!... ALERT: Suspicious activity at Recycling Unit R005. Dispatching Investigation squad. >> DECODED: Repair Station location. Med. Armored Exoskeleton destroyed. System corrupted: Component data lost. Exp. Matter Compressor destroyed. Critical hit (Burn: +37). Map ----- +----------------------------------------------------+ | ????????????????????????????????????????????? | | ????????????????????????????????????????????? | | ????????????????????????????????????????????? | | ????????????????????????????????????????????? | | ????????????????????????????????????????????? | | ????????????????????????????????????????????? | | ????????????????????????????????????????????? | | ????????????????????????????????????????????? | | ????????????????????????????????????????????? | | ????????????????????????????????????????????? | | ????????????????????????????????????????????? | | ????????????????????????#####???????????????? | | ???????????????????????? #???????????????? | | ???????????????????????? #???????????????? | | ???????????????????????# #???????????????? | | ???????????????????????# +???????????????? | | ???????????????????????# #???????????????? | | ???????????????????????# #???????????????? | | ?????????????########### #???????????????? | | ?????????????# # #???????????????? | | ?????????????# # #???????????????? | | ?????????????# """pg# #???????????????? | | ?????????????# Y" g/ +???????????????? | | ?????????????# """ g# #???????????????? | | ?????????????# p g # #???????????????? | | ?????????????# @ # #???????????????? | | ?????????????# * # #???????????????? | | ?????????????########### #???????????????? | | ???????????????????????# ###########?????? | | ???????????????????????# ????? | | ???????????????????????# ????? | | ??????????????#######??# ????? | | ??????????????# ?# ????? | | ??????????????? ?# ###########?????? | | ??????????????? """ # #???????????????? | | ??????????????#= """ # #???????????????? | | ??????????????# """ + #???????????????? | | ??????????????# """ # #???????????????? | | ??????????????? """ # ########????????? | | ??????????????? ?# # """"" #?????? | | ??????????????# ?# # """"" #?????? | | ??????????????###+###??# # """"" #?????? | | ???????????????????????# # #?????? | | ???????????????????????# + #?????? | | ???????????????????????# # ]#?????? | | ???????????????????????# #* #?????? | | ???????????????????????# # #?????? | | ???????????????????????# ###"#+#####?????? | | ???????????????????????# ## # #?????????? | | ???????????????????????# !=## # ##????????? | +----------------------------------------------------+ Best States ------------- Heat Dissipation 103 Energy Generation 39 Energy Capacity 1800 Matter Stores 800 Matter Capacity 800 Sight Range 21 Robot Scan Range 16 Terrain Scan Density 10 Jamming Range 14 Base Temperature (-) 200 Armor Coverage 400 Resistance: EM 25 Core Shielding 20 Weapon Cycling 30 Evasion (%) 57 Target Analysis 8 Recoil Reduction 2 Particle Charging 25 Salvage Targeting 4 Offensive Hacking 42 Item Schematics ----------------- None Robot Schematics ------------------ None Fabricated ------------ Nothing Repaired ---------- Nothing Studied --------- None Alien Tech Used ----------------- None Achievements -------------- None Challenges ------------ None Game ------ Seed ColdEnergyMaxwheels Manual? 0 Play Time 01:23:02 Cumulative 362.6 hours Start 2026.07.02 @ 21:35:35 End 2026.07.03 @ 12:35:51 Sessions 2 Manual Loads 0 Difficulty Rogue Special Mode None Game No. 894 Rogue 892 Adventurer 2 Explorer 0 Win Type - Total 1 Types 1/0/0/0/0/0/0/0/0/0 Lore% 51 Gallery% 67 Achievement% 53 Wizard Run 0 Options --------- Layout 2 ASCII 0 Keyboard 0 Movement Mouse Keybinds 0 Fullscreen 1 Font 24/Smallcaps Map View 50x44 Zoom Use 0% Tactical HUD 0 Map Filters NONE Filters NONE Steam 1 RUN: 3423dd11-e850-4aa7-9bb2-4d04d61a13ee